lending/lending_fUSD_20241228
["ID","MTS","AMOUNT","RATE_DAILY","PERIOD"]
[346933755,1735395712199,500.0,0.00022999,120]
[346933756,1735395712774,500.0,0.00022999,120]
[346933757,1735395713630,500.0,0.00022999,120]
[346933758,1735395713758,411.47798886,0.00022999,120]
[346933759,1735395714129,266.79,0.00022999,120]
[346933760,1735395714406,500.0,0.00022999,120]
[346933761,1735395715006,500.0,0.00022999,120]
[346933762,1735395716001,500.0,0.00022999,120]
[346933763,1735395716660,500.0,0.00022999,120]
[346933764,1735395718415,500.0,0.00022999,120]
[346933765,1735395719972,500.0,0.00022999,120]
[346933766,1735395721850,500.0,0.00022999,120]
[346933767,1735395722155,500.0,0.00022999,120]
[346933768,1735395723271,5000.0,0.00023,120]
[346933769,1735395723355,500.0,0.00022999,120]
[346933770,1735395725115,500.0,0.00022999,120]
[346933771,1735395725871,500.0,0.00022999,120]
[346933772,1735395726674,500.0,0.00022999,120]
[346933773,1735395727295,500.0,0.00022999,120]
[346933774,1735395727856,500.0,0.00022999,120]
[346933775,1735395729916,500.0,0.00022999,120]
[346933776,1735395730888,262.98,0.00022999,120]
[346933777,1735395741563,777.49,0.00022999,120]
[346933778,1735395742747,777.49,0.00022999,120]
[346933779,1735395743262,777.49,0.00022999,120]
[346933780,1735395744074,777.49,0.00022999,120]
[346933781,1735395744564,4365.7284003,0.00023,120]
[346933782,1735395745149,777.49,0.00022999,120]
[346933783,1735395746946,777.49,0.00022999,120]
[346933784,1735395747662,777.49,0.00022999,120]
[346933785,1735395747914,615.52,0.00022999,120]
[346933786,1735395748470,777.49,0.00022999,120]
[346933787,1735395749219,615.52,0.00022999,120]
[346933788,1735395749550,777.49,0.00022999,120]
[346933789,1735395750801,615.52,0.00022999,120]
[346933790,1735395751100,777.49,0.00022999,120]
[346933791,1735395751978,615.52,0.00022999,120]
[346933792,1735395752187,777.49,0.00022999,120]
[346933793,1735395752537,615.52,0.00022999,120]
[346933794,1735395752937,777.49,0.00022999,120]
[346933795,1735395753027,615.52,0.00022999,120]
[346933796,1735395753405,777.49,0.00022999,120]
[346933797,1735395753560,615.52,0.00022999,120]
[346933798,1735395753978,777.49,0.00022999,120]
[346933799,1735395754147,615.52,0.00022999,120]
[346933800,1735395754875,777.49,0.00022999,120]
[346933801,1735395754966,615.52,0.00022999,120]
[346933802,1735395756531,777.49,0.00022999,120]
[346933803,1735395756579,615.52,0.00022999,120]
[346933804,1735395773624,1077.75,0.00022999,120]
[346933805,1735395774033,1077.75,0.00022999,120]
[346933806,1735395774898,1077.75,0.00022999,120]
[346933807,1735395776411,1077.75,0.00022999,120]
[346933808,1735395777230,1077.75,0.00022999,120]
[346933809,1735395778409,1077.75,0.00022999,120]
[346933810,1735395779161,1077.75,0.00022999,120]
[346933811,1735395779791,1077.75,0.00022999,120]
[346933812,1735395781141,1077.75,0.00022999,120]
[346933813,1735395782288,1077.75,0.00022999,120]
[346933814,1735395783083,1077.75,0.00022999,120]
[346933815,1735395783922,1077.75,0.00022999,120]
[346933816,1735395784283,1077.75,0.00022999,120]
[346933817,1735395784505,628.69,0.00022999,120]
[346933818,1735395784753,1077.75,0.00022999,120]
[346933819,1735395785086,628.69,0.00022999,120]
[346933820,1735395786513,628.69,0.00022999,120]
[346933821,1735395787598,628.69,0.00022999,120]
[346933822,1735395788303,628.69,0.00022999,120]
[346933823,1735395789327,628.69,0.00022999,120]
[346933824,1735395790865,628.69,0.00022999,120]
[346933825,1735395792259,628.69,0.00022999,120]
[346933826,1735395793492,628.69,0.00022999,120]
[346933827,1735395794492,628.69,0.00022999,120]
[346933828,1735395795014,628.69,0.00022999,120]
[346933829,1735395795647,628.69,0.00022999,120]
[346933830,1735395796143,628.69,0.00022999,120]
[346933831,1735395796206,500.0,0.00022999,120]
[346933832,1735395796829,500.0,0.00022999,120]
[346933833,1735395796984,500.0,0.00022999,120]
[346933834,1735395797028,628.69,0.00022999,120]
[346933835,1735395798217,500.0,0.00022999,120]
[346933836,1735395798261,500.0,0.00022999,120]
[346933837,1735395798791,500.0,0.00022999,120]
[346933838,1735395798836,500.0,0.00022999,120]
[346933839,1735395799544,500.0,0.00022999,120]
[346933840,1735395800820,500.0,0.00022999,120]
[346933841,1735395801983,500.0,0.00022999,120]
[346933842,1735395802825,515.2,0.00022999,120]
[346933843,1735395810771,500.0,0.00022999,120]
[346933844,1735395812176,500.0,0.00022999,120]
[346933845,1735395813145,500.0,0.00022999,120]
[346933846,1735395814083,500.0,0.00022999,120]
[346933847,1735395815061,500.0,0.00022999,120]
[346933848,1735395815624,500.0,0.00022999,120]
[346933849,1735395817095,500.0,0.00022999,120]
[346933850,1735395818157,500.0,0.00022999,120]
[346933851,1735395818567,517.46921354,0.00022999,120]
[346933852,1735395818764,500.0,0.00022999,120]
[346933853,1735395821384,500.0,0.00023,120]
[346933854,1735395822490,500.0,0.00022999,120]
[346933855,1735395823316,500.0,0.00022999,120]
[346933856,1735395824670,500.0,0.00022999,120]
[346933857,1735395826125,500.0,0.00022999,120]
[346933858,1735395827066,500.0,0.00022999,120]
[346933859,1735395828368,500.0,0.00022999,120]
[346933860,1735395829328,500.0,0.00022999,120]
[346933861,1735395830028,500.0,0.00022999,120]
[346933862,1735395830775,533.3,0.00022999,120]
[346933863,1735395831054,500.0,0.00022999,120]
[346933865,1735395831578,533.3,0.00022999,120]
[346933866,1735395831909,500.0,0.00022999,120]
[346933867,1735395832913,500.0,0.00022999,120]
[346933868,1735395833030,533.3,0.00022999,120]
[346933869,1735395833709,500.0,0.00022999,120]
[346933870,1735395834117,533.3,0.00022999,120]
[346933871,1735395834268,500.0,0.00022999,120]
[346933872,1735395834677,533.3,0.00022999,120]
[346933873,1735395835355,349.71,0.00022999,120]
[346933874,1735395835663,533.3,0.00022999,120]
[346933875,1735395837447,533.3,0.00022999,120]
[346933876,1735395838944,533.3,0.00022999,120]
[346933877,1735395840219,533.3,0.00022999,120]
[346933878,1735395841401,5410.0,0.00023,120]
[346933879,1735395843874,533.3,0.00022999,120]
[346933880,1735395845044,533.3,0.00022999,120]
[346933881,1735395845765,533.3,0.00022999,120]
[346933882,1735395846390,533.3,0.00022999,120]
[346933883,1735395847142,533.3,0.00022999,120]
[346933884,1735395849624,533.3,0.00022999,120]
[346933885,1735395850646,500.0,0.00022999,120]
[346933886,1735395850823,533.3,0.00022999,120]
[346933887,1735395851642,500.0,0.00022999,120]
[346933888,1735395852188,533.3,0.00022999,120]
[346933889,1735395852576,500.0,0.00022999,120]
[346933890,1735395853374,500.0,0.00022999,120]
[346933891,1735395853657,500.0,0.00022999,120]
[346933892,1735395854340,500.0,0.00022999,120]
[346933893,1735395854811,500.0,0.00022999,120]
[346933894,1735395861258,500.0,0.00022999,120]
[346933895,1735395863260,500.0,0.00023,120]
[346933896,1735395863311,500.0,0.00022999,120]
[346933897,1735395863809,500.0,0.00022999,120]
[346933898,1735395865565,500.0,0.00022999,120]
[346933899,1735395866158,1008.78,0.00022999,120]
[346933900,1735395866416,167.48105834,0.00022999,120]
[346933901,1735395867077,1008.78,0.00022999,120]
[346933902,1735395867714,1008.78,0.00022999,120]
[346933903,1735395868276,1008.78,0.00022999,120]
[346933904,1735395868741,1008.78,0.00022999,120]
[346933905,1735395869710,1008.78,0.00022999,120]
[346933906,1735395871349,1008.78,0.00022999,120]
[346933907,1735395872341,1008.78,0.00022999,120]
[346933908,1735395873038,1008.78,0.00022999,120]
[346933909,1735395873990,1008.78,0.00022999,120]
[346933910,1735395874846,1008.78,0.00022999,120]
[346933911,1735395875713,1008.78,0.00022999,120]
[346933912,1735395876788,1008.78,0.00022999,120]
[346933913,1735395877287,1008.78,0.00022999,120]
[346933914,1735395877364,818.54,9.193e-05,2]
[346933915,1735395878927,1008.78,0.00022999,120]
[346933916,1735395879978,1008.78,0.00022999,120]
[346933917,1735395881362,1008.78,0.00022999,120]
[346933918,1735395882440,1008.78,0.00022999,120]
[346933919,1735395883196,1008.78,0.00022999,120]
[346933920,1735395884050,1008.78,0.00022999,120]
[346933921,1735395884797,1008.78,0.00022999,120]
[346933922,1735395887159,1008.78,0.00022999,120]
[346933923,1735395887773,500.0,0.00022999,120]
[346933924,1735395888034,1008.78,0.00022999,120]
[346933925,1735395889090,500.0,0.00022999,120]
[346933926,1735395917811,1683.37,0.00022999,120]
[346933927,1735395917861,1683.37,0.00022999,120]
[346933928,1735395918523,1683.37,0.00022999,120]
[346933929,1735395919322,1683.37,0.00022999,120]
[346933930,1735395919992,1683.37,0.00022999,120]
[346933931,1735395921613,1683.37,0.00022999,120]
[346933932,1735395923498,1472.95,0.00022999,120]
[346933933,1735395924433,1683.37,0.00022999,120]
[346933934,1735395925103,1472.95,0.00022999,120]
[346933935,1735395925721,500.0,0.00023,120]
[346933936,1735395925769,1683.37,0.00022999,120]
[346933937,1735395926274,1472.95,0.00022999,120]
[346933938,1735395927358,1683.37,0.00022999,120]
[346933939,1735395927740,1472.95,0.00022999,120]
[346933940,1735395928182,1683.37,0.00022999,120]
[346933942,1735395928493,1472.95,0.00022999,120]
[346933943,1735395928937,1683.37,0.00022999,120]
[346933944,1735395929316,1472.95,0.00022999,120]
[346933945,1735395930097,1683.37,0.00022999,120]
[346933948,1735395930243,1472.95,0.00022999,120]
[346933952,1735395931237,1472.95,0.00022999,120]
[346933953,1735395931829,1683.37,0.00022999,120]
[346933954,1735395932593,1818.44,0.00022999,120]
[346933955,1735395933326,1472.95,0.00022999,120]
[346933956,1735395934502,1818.44,0.00022999,120]
[346933957,1735395934653,1683.37,0.00022999,120]
[346933958,1735395935385,1818.44,0.00022999,120]
[346933959,1735395935681,1472.95,0.00022999,120]
[346933960,1735395935755,1683.37,0.00022999,120]
[346933963,1735395936142,1818.44,0.00022999,120]
[346933965,1735395937046,1818.44,0.00022999,120]
[346933966,1735395938918,1818.44,0.00022999,120]
[346933967,1735395940558,1818.44,0.00022999,120]
[346933968,1735395941052,475.94,0.00022999,120]
[346933969,1735395942571,1818.44,0.00022999,120]
[346933970,1735395943477,1818.44,0.00022999,120]
[346933971,1735395944167,1818.44,0.00022999,120]
[346933972,1735395946647,1818.44,0.00022999,120]
[346933973,1735395949090,1818.44,0.00022999,120]
[346933974,1735395949899,1818.44,0.00022999,120]
[346933975,1735395951975,1818.44,0.00022999,120]
[346933976,1735395952676,1818.44,0.00022999,120]
[346933977,1735395953298,1818.44,0.00022999,120]
[346933978,1735395954576,1818.44,0.00022999,120]
[346933979,1735395955506,1818.44,0.00022999,120]
[346933980,1735395956696,1818.44,0.00022999,120]
[346933981,1735395957698,1818.44,0.00022999,120]
[346933982,1735395958601,1818.44,0.00022999,120]
[346933983,1735395959373,1818.44,0.00022999,120]
[346933984,1735395960771,1818.44,0.00022999,120]
[346933985,1735395965495,1818.54321958,0.00022999,120]
[346933986,1735395983780,233.15149524,0.00022999,120]
[346933988,1735396019126,421.01364569,0.00022999,120]
[346933994,1735396032198,500.0,0.00022999,120]
[346933995,1735396034670,529.25,0.00022999,120]
[346933997,1735396067175,500.0,0.00022999,120]
[346933998,1735396068807,500.0,0.00022999,120]
[346933999,1735396070065,500.0,0.00022999,120]
[346934000,1735396070412,500.0,0.00022999,120]
[346934001,1735396071400,500.0,0.00022999,120]
[346934002,1735396072640,500.0,0.00022999,120]
[346934003,1735396074393,500.0,0.00022999,120]
[346934004,1735396075123,500.0,0.00022999,120]
[346934005,1735396075928,500.0,0.00022999,120]
[346934006,1735396077268,251.14,0.00022999,120]
[346934009,1735396105361,500.0,0.00022999,120]
[346934010,1735396112950,2150.51959559,0.000225,120]
[346934012,1735396118204,500.0,0.00022999,120]
[346934013,1735396119823,2960.0,0.00022,120]
[346934040,1735396232395,-168.46,0.00010137,2]
[346934041,1735396232405,-264.18,0.00011107,2]
[346934042,1735396232415,-781.98,0.00011117,2]
[346934043,1735396232425,-205.15800102,0.00011176,2]
[346934044,1735396232438,-305.13319648,0.00011176,2]
[346934045,1735396232552,-489.7088025,0.00011176,2]
[346934046,1735396232561,-162.69,0.00011184,2]
[346934047,1735396232570,-250.0,0.00011197,2]
[346934048,1735396232580,-250.0,0.00011228,2]
[346934049,1735396232589,-200.0,0.00011283,2]
[346934050,1735396232599,-818.54,0.00011457,2]
[346934051,1735396232611,-531.0,0.00011627,2]
[346934052,1735396232621,-246.0,0.00011629,2]
[346934053,1735396232631,-323.11718044,0.0001163,2]
[346934054,1735396232643,-207.88281956,0.0001163,2]
[346934055,1735396232653,-5200.0,0.0001163,2]
[346934056,1735396232663,-531.0,0.00011633,2]
[346934057,1735396232673,-150.99,0.00011633,2]
[346934058,1735396232683,-531.0,0.00011636,2]
[346934059,1735396232692,-531.0,0.00011639,2]
[346934060,1735396232703,-531.0,0.00011642,2]
[346934061,1735396232712,-531.0,0.00011645,2]
[346934062,1735396232722,-531.0,0.00011648,2]
[346934063,1735396232732,-4800.0,0.0001165,2]
[346934064,1735396232741,-531.0,0.00011651,2]
[346934065,1735396232751,-531.0,0.00011654,2]
[346934066,1735396232761,-531.0,0.00011657,2]
[346934067,1735396232771,-531.0,0.0001166,2]
[346934068,1735396232780,-531.0,0.00011663,2]
[346934069,1735396232790,-531.0,0.00011667,2]
[346934070,1735396232800,-531.0,0.0001167,2]
[346934071,1735396232810,-531.0,0.00011673,2]
[346934072,1735396232819,-531.0,0.00011676,2]
[346934073,1735396232830,-531.0,0.00011679,2]
[346934074,1735396232840,-531.0,0.00011682,2]
[346934075,1735396232849,-531.0,0.00011685,2]
[346934076,1735396232858,-150.0,0.00011688,2]
[346934077,1735396232868,-150.0,0.00011688,2]
[346934078,1735396232877,-150.0,0.00011688,2]
[346934080,1735396232888,-150.0,0.00011688,2]
[346934082,1735396232898,-152.87,0.00011761,2]
[346934084,1735396232908,-152.11,0.00011773,2]
[346934087,1735396232918,-224.16933582,0.000119,4]
[346934089,1735396232930,-275.83066418,0.000119,4]
[346934091,1735396232939,-150.0,0.00011904,2]
[346934093,1735396232949,-16.8901805,0.00011972,2]
[346934095,1735396232960,-1283.1098195,0.00011972,2]
[346934097,1735396232970,-500.0,0.00011972,2]
[346934099,1735396232979,-450.0,0.00012,2]
[346934101,1735396232988,-1000.0,0.00012,4]
[346934103,1735396232998,-150.0,0.00012012,2]
[346934105,1735396233008,-1500.0,0.000121,4]
[346934107,1735396233017,-150.0,0.00012121,2]
[346934109,1735396233027,-18.2973563,0.00012121,2]
[346934141,1735396233327,-131.7026437,0.00012121,2]
[346934143,1735396233337,-153.0,0.00012158,2]
[346934145,1735396233347,-112.7973613,0.00012159,2]
[346934147,1735396233360,-40.2026387,0.00012159,2]
[346934149,1735396233370,-2100.0,0.000122,4]
[346934151,1735396233380,-2600.0,0.000123,4]
[346934153,1735396233390,-3000.0,0.0001231,2]
[346934155,1735396233400,-150.0,0.00012337,2]
[346934157,1735396233409,-150.0,0.00012337,2]
[346934159,1735396233420,-377.622,0.0001235,2]
[346934161,1735396233430,-35850.6853613,0.0001235,2]
[346934163,1735396233442,-8417.3146387,0.0001235,2]
[346934165,1735396233452,-500.0,0.000124,4]
[346934167,1735396233462,-5274.3469,0.000124,2]
[346934169,1735396233471,-14759.2889581,0.00012434,2]
[346934171,1735396233483,-1404.39753529,0.00012434,2]
[346934173,1735396233493,-368.54387616,0.00012436,2]
[346934175,1735396233503,-437.36,0.00012438,2]
[346934177,1735396233513,-771.17,0.00012438,2]
[346934179,1735396233524,-437.36,0.00012438,2]
[346934181,1735396233534,-437.36,0.00012438,2]
[346934183,1735396233544,-771.17,0.00012438,2]
[346934185,1735396233558,-437.36,0.00012438,2]
[346934187,1735396233568,-771.17,0.00012438,2]
[346934189,1735396233578,-215.88,0.00012438,2]
[346934192,1735396233588,-437.36,0.00012438,2]
[346934193,1735396233598,-822.24,0.00012438,2]
[346934195,1735396233607,-21497.64241145,0.0001244,2]
[346934197,1735396233619,-846.740009,0.0001244,2]
[346934199,1735396233630,-5306.70704756,0.00012441,2]
[346934201,1735396233640,-846.740009,0.00012441,2]
[346934204,1735396233650,-26533.53523779,0.00012442,2]
[346934205,1735396233662,-21497.64241145,0.00012443,2]
[346934208,1735396233672,-368.54387616,0.00012443,2]
[346934209,1735396233681,-846.740009,0.00012446,2]
[346934211,1735396233692,-846.740009,0.00012448,2]
[346934213,1735396233702,-21497.64241145,0.00012449,2]
[346934215,1735396233711,-5306.70704756,0.0001245,2]
[346934217,1735396233721,-368.54387616,0.00012452,2]
[346934219,1735396233731,-21497.64241145,0.00012453,2]
[346934221,1735396233740,-26533.53523779,0.00012453,2]
[346934223,1735396233750,-5306.70704756,0.00012455,2]
[346934225,1735396233760,-21497.64241145,0.00012456,2]
[346934227,1735396233770,-368.54387616,0.00012457,2]
[346934229,1735396233780,-26533.53523779,0.00012458,2]
[346934231,1735396233789,-26533.53523779,0.0001246,2]
[346934233,1735396233799,-5306.70704756,0.0001246,2]
[346934235,1735396233809,-26533.53523779,0.0001246,2]
[346934237,1735396233818,-5306.70704756,0.00012462,2]
[346934239,1735396233828,-368.54387616,0.00012462,2]
[346934241,1735396233837,-846.740009,0.00012464,2]
[346934243,1735396233847,-5306.70704756,0.00012464,2]
[346934246,1735396233861,-846.740009,0.00012468,2]
[346934248,1735396233871,-21497.64241145,0.0001247,2]
[346934249,1735396233881,-264.18,0.00012495,2]
[346934251,1735396233891,-11188.47244413,0.000125,10]
[346934254,1735396233901,-500.0,0.000125,4]
[346934255,1735396233911,-150.0,0.00012553,2]
[346934257,1735396233921,-150.0,0.00012553,2]
[346934258,1735396233932,-1000.0,0.00012573,2]
[346934259,1735396233942,-500.0,0.000126,4]
[346934260,1735396233952,-500.0,0.00012642,2]
[346934261,1735396233963,-150.0,0.00012662,2]
[346934262,1735396233973,-500.0,0.000127,4]
[346934263,1735396233983,-636.0,0.00012711,2]
[346934264,1735396233994,-1102.0,0.00012711,2]
[346934265,1735396234004,-150.0,0.0001277,2]
[346934266,1735396234014,-900.0,0.000128,4]
[346934268,1735396234024,-1331.6586,0.000128,2]
[346934270,1735396234035,-894.70761844,0.00012805,2]
[346934272,1735396234044,-3000.0,0.0001285,2]
[346934274,1735396234055,-1200.743,0.00012884,2]
[346934276,1735396234066,-166.447,0.00012884,2]
[346934278,1735396234076,-7356.0314252,0.00012886,2]
[346934280,1735396234089,-61485.9447748,0.00012886,2]
[346934282,1735396234098,-173.633,0.000129,2]
[346934284,1735396234108,-152.75,0.000129,2]
[346934286,1735396234117,-151.15,0.000129,2]
[346934288,1735396234128,-162.4983995,0.000129,2]
[346934290,1735396234138,-453.9271884,0.000129,2]
[346934292,1735396234148,-3530.25622692,0.000129,2]
[346934294,1735396234158,-70000.0,0.0001295,2]
[346934296,1735396234167,-400.0,0.0001297,2]
[346934298,1735396234177,-400.0,0.0001297,2]
[346934300,1735396234187,-348.10218876,0.00012973,2]
[346934302,1735396234197,-86639.0,0.00012986,2]
[346934304,1735396234207,-4402.0,0.00012986,2]
[346934306,1735396234216,-1032.0,0.00012986,2]
[346934308,1735396234227,-282.72247137,0.00012986,2]
[346934310,1735396234237,-245.18848981,0.00012986,2]
[346934312,1735396234246,-150.0,0.00012986,2]
[346934314,1735396234256,-5000.0,0.00012998,2]
[346934316,1735396234266,-6511.52513971,0.00012999,2]
[346934318,1735396234276,-2000.0,0.00012999,2]
[346934320,1735396234285,-2000.0,0.00012999,2]
[346934322,1735396234296,-2000.0,0.00012999,2]
[346934324,1735396234307,-2000.0,0.00012999,2]
[346934326,1735396234317,-2000.0,0.00012999,2]
[346934328,1735396234327,-2000.0,0.00012999,2]
[346934330,1735396234338,-500.0,0.00012999,2]
[346934332,1735396234349,-500.0,0.00012999,2]
[346934334,1735396234360,-376.7622718,0.00012999,2]
[346934336,1735396234369,-2000.0,0.00012999,2]
[346934338,1735396234379,-2000.0,0.00012999,2]
[346934340,1735396234389,-500.0,0.00012999,2]
[346934342,1735396234399,-739.0,0.00012999,2]
[346934344,1735396234410,-2324.37909718,0.00013,2]
[346934346,1735396234420,-119068.80595175,0.00013,2]
[346934348,1735396234433,-1315.83862212,0.00013,2]
[346934736,1735396238214,-9245.51527294,0.00013,2]
[346934740,1735396238297,-17000.00000005,0.00013,2]
[346934741,1735396238314,-19600.0,0.00013,2]
[346934742,1735396238380,-3957.69735742,0.00013,2]
[346934743,1735396238463,-41931.84,0.00013,2]
[346934783,1735396239294,500.0,0.00022999,120]
[346934791,1735396240380,-276.26530975,0.00013,2]
[346934792,1735396240393,-5648.22,0.00013,2]
[346934793,1735396240406,-1153.99999999,0.00013,2]
[346934794,1735396240467,-607.57224338,0.00013,2]
[346934795,1735396240479,-9536.58916219,0.00013,2]
[346934796,1735396240531,500.0,0.00022999,120]
[346934797,1735396240770,500.0,0.00022999,120]
[346934798,1735396241008,362.74502153,0.00022999,120]
[346934799,1735396241329,500.0,0.00022999,120]
[346934800,1735396241737,225.07,0.00022999,120]
[346934801,1735396242317,500.0,0.00022999,120]
[346934802,1735396242937,500.0,0.00022999,120]
[346934805,1735396243417,503.32632208,0.00022999,120]
[346934806,1735396243567,500.0,0.00022999,120]
[346934807,1735396244014,-1135.5,0.000129,2]
[346934809,1735396244026,-183.4169,0.000129,2]
[346934810,1735396244036,-6378.183163,0.00013,2]
[346934811,1735396244047,-94060.61029949,0.00013,2]
[346934839,1735396244427,-1032.0,0.00013,2]
[346934842,1735396244439,-3330.565,0.00013,2]
[346934850,1735396244517,-1101.13499986,0.00013,2]
[346934853,1735396244529,-1447.78479097,0.00013,2]
[346934855,1735396244549,-769.45156274,0.00013,2]
[346934856,1735396244567,-3632.6958566,0.00013,2]
[346934866,1735396246307,-2495.0001,0.00013,2]
[346934867,1735396246365,500.79270934,0.00022999,120]
[346934868,1735396246389,-17452.2427031,0.00013,2]
[346934869,1735396246475,-411.866,0.00013,2]
[346934870,1735396246487,-995.56212981,0.00013,2]
[346934871,1735396246498,-4330.28024551,0.00013,2]
[346934872,1735396246510,-16608.41649719,0.00013,2]
[346934873,1735396246522,-608.35712949,0.00013,2]
[346934874,1735396246554,-254.0389,0.00013,2]
[346934875,1735396246569,-92853.89456873,0.00013,2]
[346934876,1735396246581,-700.84949164,0.00013,2]
[346934877,1735396246595,-19766.26288159,0.00013,2]
[346934878,1735396246607,-343.58787077,0.00013,2]
[346934879,1735396246676,-4796.199487,0.00013,2]
[346934881,1735396246687,-447.77995139,0.00013,2]
[346934883,1735396247161,500.0,0.00022999,120]
[346934884,1735396247401,237.6,0.00022999,120]
[346934885,1735396247782,500.0,0.00022999,120]
[346934886,1735396248024,409.81,0.00022999,120]
[346934887,1735396249886,500.0,0.00022999,120]
[346934888,1735396251941,546.76,0.00022999,120]
[346934889,1735396253607,502.49754576,0.00022999,120]
[346934890,1735396253860,500.0,0.00022999,120]
[346934891,1735396255060,500.0,0.00022999,120]
[346934892,1735396257561,500.0,0.00022999,120]
[346934893,1735396259622,500.0,0.00022999,120]
[346934894,1735396265367,502.12743403,0.00022999,120]
[346934895,1735396269763,500.0,0.00022999,120]
[346934896,1735396270021,243.26,0.00022999,120]
[346934897,1735396270669,500.0,0.00022999,120]
[346934898,1735396270915,500.0,0.00022999,120]
[346934899,1735396271173,547.82,0.00022999,120]
[346934900,1735396272312,500.0,0.00022999,120]
[346934901,1735396274713,-139254.0,0.00013,4]
[346934902,1735396281345,500.0,0.00022999,120]
[346934903,1735396288381,502.79625515,0.00022999,120]
[346934904,1735396311458,614.16,0.00022999,120]
[346934905,1735396335871,-18505.0,0.00013,4]
[346934906,1735396347225,500.0,0.00022999,120]
[346934907,1735396348854,500.0,0.00022999,120]
[346934908,1735396352964,500.0,0.00022999,120]
[346934909,1735396353220,251.45,0.00022999,120]
[346934910,1735396353526,500.0,0.00022999,120]
[346934911,1735396355584,500.0,0.00022999,120]
[346934912,1735396357055,343.56,0.00022999,120]
[346934913,1735396362052,500.0,0.00022999,120]
[346934914,1735396362541,500.0,0.00022999,120]
[346934915,1735396363174,500.0,0.00022999,120]
[346934916,1735396363794,500.0,0.00022999,120]
[346934917,1735396364977,495.80665881,0.00022999,120]
[346934918,1735396368897,337.26,0.00022999,120]
[346934919,1735396377033,2068966.56899006,0.00022999,120]
[346934920,1735396381335,500.0,0.00022999,120]
[346934921,1735396382300,500.0,0.00022999,120]
[346934922,1735396383822,500.0,0.00022999,120]
[346934923,1735396385156,538.19,0.00022999,120]
[346934924,1735396399225,642.40866153,0.00022999,120]
[346934925,1735396400229,500.0,0.00022999,120]
[346934926,1735396401006,500.0,0.00022999,120]
[346934927,1735396401387,500.0,0.00022999,120]
[346934928,1735396401549,500.0,0.00022999,120]
[346934929,1735396401664,500.0,0.00022999,120]
[346934930,1735396401910,436.05087737,0.00022999,120]
[346934931,1735396402460,500.0,0.00022999,120]
[346934932,1735396403339,500.0,0.00022999,120]
[346934933,1735396403718,500.0,0.00022999,120]
[346934934,1735396404000,500.0,0.00022999,120]
[346934935,1735396404383,500.0,0.00022999,120]